[Event "2nd Sparkasse Trophy Harrwitz Memorial"]
[Site "Bolzano"]
[Date "2025.04.25"]
[Round "2.4"]
[White "Unterweger, Jonas"]
[Black "Olivetti, Davide"]
[Result "1-0"]
[Annotator "RC"]
[ECO "D02"]
[WhiteElo "2109"]
[BlackElo "2224"]
[PlyCount "93"]
[EventDate "2025.04.19"]
[EventType "swiss"]
[EventCountry "ITA"]
[SourceTitle "playchess.com"]
[Source "ChessBase"]
[SourceQuality "1"]
[TimeControl "40/5400+30:900+30"]

1. d4 {[%emt 0:00:03]} d5 {[%emt 0:00:40]} 2. Nf3 {[%emt 0:00:05]} Nf6 {[%emt 0:00:07]} 3. c3 {[%emt 0:00:12]} e6 {[%emt 0:00:10]} 4. Bf4 {[%emt 0:00:06]} Bd6 {[%emt 0:00:07]} 5. e3 {[%emt 0:00:22]} b6 {[%emt 0:00:33]} 6. Nbd2 {[%emt 0:01:12]} O-O {[%emt 0:00:12]} 7. Bg3 {[%emt 0:00:42]} Bb7 {[%emt 0:00:24]} 8. Ne5 {[%emt 0:01:15]} Nbd7 {[%emt 0:00:26]} 9. Bd3 {[%emt 0:00:47]} Ne4 {[%emt 0:01:01]} 10. Nxe4 {[%emt 0:01:50]} dxe4 {[%emt 0:00:13]} 11. Bb5 {[%emt 0:02:47]} Nxe5 {[%emt 0:01:10]} 12. dxe5 {[%emt 0:00:21]} Be7 {[%emt 0:01:10]} 13. O-O {[%emt 0:02:05]} a6 {[%emt 0:00:28]} 14. Be2 {[%emt 0:01:03]} b5 {[%emt 0:01:44]} 15. a4 {[%emt 0:03:34]} b4 {[%emt 0:00:51]} 16. Qc2 {[%emt 0:10:28]} Qb8 {[%emt 0:04:39]} 17. Rac1 {[%emt 0:10:33]} Bd5 {[%emt 0:02:58]} 18. cxb4 {[%emt 0:02:25]} Qxb4 {[%emt 0:00:08]} 19. Qxc7 {[%emt 0:03:42]} g5 {[%emt 0:07:19]} 20. Rfd1 {[%emt 0:07:19]} Rfb8 {[%emt 0:07:50]} 21. Rd4 {[%emt 0:13:35]} Qb7 {[%emt 0:02:19]} 22. Qxb7 {[%emt 0:03:12]} Rxb7 {[%emt 0:00:26]} 23. Rc2 {[%emt 0:00:47]} a5 {[%emt 0:10:10]} 24. Bb5 {[%emt 0:05:03]} h5 {[%emt 0:00:45]} 25. f3 {[%emt 0:02:17]} exf3 {[%emt 0:00:50]} 26. e4 {[%emt 0:00:33]} Ba2 {[%emt 0:16:26]} 27. gxf3 {[%emt 0:05:42]} Raa7 {[%emt 0:00:27]} 28. Be1 {[%emt 0:03:39]} Rc7 {[%emt 0:00:29]} 29. Rxc7 {[%emt 0:01:09]} Rxc7 {[%emt 0:00:09]} 30. Rd7 {[%emt 0:02:01]} Bc5+ {[%emt 0:00:32]} 31. Kg2 {[%emt 0:01:15]} Rc8 {[%emt 0:01:54]} 32. Bxa5 {[%emt 0:00:11]} Bf8 {[%emt 0:00:03]} 33. Bc7 {[%emt 0:02:05]} Kg7 {[%emt 0:01:05]} 34. Kf2 {[%emt 0:03:26]} Bc5+ {[%emt 0:00:26]} 35. Ke2 {[%emt 0:00:07]} g4 {[%emt 0:00:31]} 36. a5 {[%emt 0:01:24]} Bg1 {[%emt 0:00:41]} 37. b4 {[%emt 0:03:26]} Bxh2 {[%emt 0:00:25]} 38. fxg4 {[%emt 0:00:06]} h4 {[%emt 0:00:40]} 39. Kf3 {[%emt 0:01:06]} Bb1 {[%emt 0:07:12]} 40. Bf1 {[%emt 0:01:13]} Kg6 {[%emt 0:05:11]} 41. b5 {[%emt 0:17:46]} f5 {[%emt 0:15:03]} 42. exf5+ {[%emt 0:02:04]} exf5 {[%emt 0:00:03]} 43. gxf5+ {[%emt 0:00:00]} Bxf5 {[%emt 0:00:00]} 44. Rd6+ {[%emt 0:00:00]} Kh5 {[%emt 0:00:00]} 45. b6 {[%emt 0:00:00]} Bg4+ {[%emt 0:00:00]} 46. Ke4 {[%emt 0:00:27]} Re8 {[%emt 0:00:00]} 47. Rd8 {[%emt 0:00:57]} 1-0

[Event "2nd Sparkasse Trophy Harrwitz Memorial"]
[Site "Bolzano"]
[Date "2025.04.25"]
[Round "2.5"]
[White "Sbarra, Marco"]
[Black "Valente, Luca"]
[Result "0-1"]
[Annotator "RC"]
[ECO "E49"]
[WhiteElo "2125"]
[BlackElo "1885"]
[PlyCount "67"]
[EventDate "2025.04.19"]
[EventType "swiss"]
[EventCountry "ITA"]
[SourceTitle "playchess.com"]
[Source "ChessBase"]
[SourceQuality "1"]
[TimeControl "40/5400+30:900+30"]

1. d4 {[%emt 0:00:04]} Nf6 {[%emt 0:00:06]} 2. c4 {[%emt 0:00:05]} e6 {[%emt 0:00:05]} 3. Nc3 {[%emt 0:00:12]} Bb4 {[%emt 0:00:07]} 4. e3 {[%emt 0:00:37]} O-O {[%emt 0:00:21]} 5. Bd3 {[%emt 0:00:08]} d5 {[%emt 0:00:08]} 6. Nge2 {[%emt 0:01:21]} dxc4 {[%emt 0:00:39]} 7. Bxc4 {[%emt 0:00:04]} c5 {[%emt 0:00:40]} 8. a3 {[%emt 0:02:08]} Bxc3+ {[%emt 0:01:52]} 9. bxc3 {[%emt 0:00:05]} cxd4 {[%emt 0:00:21]} 10. cxd4 {[%emt 0:00:06]} b6 {[%emt 0:00:22]} 11. O-O {[%emt 0:01:49]} Bb7 {[%emt 0:00:15]} 12. f3 {[%emt 0:04:10]} Nc6 {[%emt 0:04:34]} 13. e4 {[%emt 0:03:32]} Rc8 {[%emt 0:02:06]} 14. Ba2 {[%emt 0:07:20]} Ba6 {[%emt 0:02:26]} 15. Bb2 {[%emt 0:16:02]} Bxe2 {[%emt 0:00:48]} 16. Qxe2 {[%emt 0:00:06]} Nxd4 {[%emt 0:00:07]} 17. Qf2 {[%emt 0:01:32]} Nc6 {[%emt 0:03:16]} 18. Rac1 {[%emt 0:18:05]} Qe7 {[%emt 0:07:21]} 19. Rc2 {[%emt 0:04:11]} Na5 {[%emt 0:03:54]} 20. Rfc1 {[%emt 0:00:29]} Rxc2 {[%emt 0:02:27]} 21. Qxc2 {[%emt 0:02:16]} h6 {[%emt 0:05:53]} 22. e5 {[%emt 0:05:55]} Nd5 {[%emt 0:02:12]} 23. Qe4 {[%emt 0:01:12]} Rd8 {[%emt 0:09:38]} 24. h4 {[%emt 0:02:52]} h5 {[%emt 0:06:27]} 25. Rc2 {[%emt 0:02:35]} Ne3 {[%emt 0:07:45]} 26. Rc1 {[%emt 0:12:51]} Nf5 {[%emt 0:02:25]} 27. Bb1 {[%emt 0:08:02]} g6 {[%emt 0:02:32]} 28. Qb4 {[%emt 0:00:51]} Qxb4 {[%emt 0:04:25]} 29. axb4 {[%emt 0:00:05]} Nb3 {[%emt 0:00:11]} 30. Re1 {[%emt 0:01:58]} Nxh4 {[%emt 0:02:56]} 31. Bc3 {[%emt 0:01:01]} Nd4 {[%emt 0:06:18]} 32. Be4 {[%emt 0:00:24]} Nb5 {[%emt 0:02:27]} 33. Bb2 {[%emt 0:03:38]} Nxg2 {[%emt 0:02:15]} 34. Ra1 {[%emt 0:00:00]} 0-1

[Event "2nd Sparkasse Trophy Harrwitz Memorial"]
[Site "Bolzano"]
[Date "2025.04.25"]
[Round "2.6"]
[White "De Vita, Gianni"]
[Black "Tripi, Nicolo`"]
[Result "1-0"]
[Annotator "NA RC"]
[ECO "B50"]
[WhiteElo "1975"]
[BlackElo "2020"]
[PlyCount "57"]
[EventDate "2025.04.19"]
[EventType "swiss"]
[EventCountry "ITA"]
[SourceTitle "playchess.com"]
[Source "ChessBase"]
[SourceQuality "1"]
[TimeControl "40/5400+30:900+30"]

1. e4 {[%emt 0:00:04]} c5 {[%emt 0:00:09]} 2. Nf3 {[%emt 0:00:09]} d6 {[%emt 0:00:09]} 3. b4 {[%emt 0:01:39]} cxb4 {[%emt 0:05:48]} 4. d4 {[%emt 0:00:30]} Nf6 {[%emt 0:00:28]} 5. Bd3 {[%emt 0:00:39]} e6 {[%emt 0:02:27]} 6. O-O {[%emt 0:01:31]} Be7 {[%emt 0:00:16]} 7. Re1 {[%emt 0:01:55]} O-O {[%emt 0:00:23]} 8. a3 {[%emt 0:02:07]} Nc6 {[%emt 0:01:01]} 9. axb4 {[%emt 0:04:01]} Nxb4 {[%emt 0:01:10]} 10. Bf1 {[%emt 0:00:41]} Qc7 {[%emt 0:08:57]} 11. c3 {[%emt 0:00:13]} Nc6 {[%emt 0:00:19]} 12. Na3 {[%emt 0:03:07]} a6 {[%emt 0:01:18]} 13. Bd2 {[%emt 0:06:05]} Bd7 {[%emt 0:11:56]} 14. Bd3 {[%emt 0:06:53]} b5 {[%emt 0:07:33]} 15. Nc2 {[%emt 0:07:56]} Rfc8 {[%emt 0:04:30]} 16. Ne3 {[%emt 0:05:13]} d5 {[%emt 0:04:28]} 17. exd5 {[%emt 0:06:08]} Nxd5 {[%emt 0:06:55]} 18. Nxd5 {[%emt 0:02:57]} exd5 {[%emt 0:00:10]} 19. Rxe7 {[%emt 0:09:56]} Nxe7 {[%emt 0:01:05]} 20. Ng5 {[%emt 0:04:10]} Bf5 {[%emt 0:01:41]} 21. Qh5 {[%emt 0:03:28]} Bxd3 {[%emt 0:09:39]} 22. Qxf7+ {[%emt 0:00:13]} Kh8 {[%emt 0:00:02]} 23. Ne6 {[%emt 0:00:57]} Ng8 {[%emt 0:12:42]} 24. Nxc7 {[%emt 0:00:31]} Ra7 {[%emt 0:00:01]} 25. Bf4 {[%emt 0:01:00]} Nf6 {[%emt 0:00:04]} 26. Bh6 {[%emt 0:31:27]} Rg8 {[%emt 0:01:22]} 27. Rxa6 {[%emt 0:00:00]} Bg6 {[%emt 0:01:41]} 28. Qe7 {[%emt 0:00:00]} Rxc7 {[%emt 0:02:37]} 29. Qxc7 {[%emt 0:00:00]} 1-0

[Event "2nd Sparkasse Trophy Harrwitz Memorial"]
[Site "Bolzano"]
[Date "2025.04.26"]
[Round "3.1"]
[White "Csontos, Aron"]
[Black "Hofegger, Jakob"]
[Result "1/2-1/2"]
[Annotator "ChessBase"]
[ECO "B53"]
[WhiteElo "2262"]
[BlackElo "2142"]
[PlyCount "91"]
[EventDate "2025.04.19"]
[EventType "swiss"]
[EventCountry "ITA"]
[SourceTitle "playchess.com"]
[Source "ChessBase"]
[SourceQuality "1"]
[TimeControl "40/5400+30:900+30"]

1. e4 {[%emt 0:00:02]} c5 {[%emt 0:00:14]} 2. Nf3 {[%emt 0:00:05]} d6 {[%emt 0:00:05]} 3. d4 {[%emt 0:00:04]} cxd4 {[%emt 0:00:04]} 4. Qxd4 {[%emt 0:00:04]} Nc6 {[%emt 0:00:32]} 5. Bb5 {[%emt 0:00:05]} Bd7 {[%emt 0:00:04]} 6. Bxc6 {[%emt 0:00:05]} Bxc6 {[%emt 0:00:05]} 7. Nc3 {[%emt 0:00:06]} Nf6 {[%emt 0:00:10]} 8. Bg5 {[%emt 0:00:00]} e6 {[%emt 0:00:00]} 9. O-O-O {[%emt 0:00:00]} Be7 {[%emt 0:00:00]} 10. Qd3 {[%emt 0:00:07]} Qa5 {[%emt 0:00:09]} 11. h4 {[%emt 0:00:14]} h6 {[%emt 0:00:50]} 12. Bxf6 {[%emt 0:00:24]} Bxf6 {[%emt 0:00:28]} 13. Nd4 {[%emt 0:00:33]} Rc8 {[%emt 0:06:27]} 14. Kb1 {[%emt 0:09:50]} a6 {[%emt 0:03:45]} 15. f4 {[%emt 0:04:41]} Qb6 {[%emt 0:29:17]} 16. Nce2 {[%emt 0:21:22]} h5 {[%emt 0:12:25]} 17. c3 {[%emt 0:07:40]} Qc5 {[%emt 0:05:49]} 18. f5 {[%emt 0:11:30]} e5 {[%emt 0:11:16]} 19. Nxc6 {[%emt 0:00:30]} Rxc6 {[%emt 0:00:24]} 20. Ng3 {[%emt 0:06:13]} Ke7 {[%emt 0:01:37]} 21. Nf1 {[%emt 0:01:22]} Qc4 {[%emt 0:04:02]} 22. Ne3 {[%emt 0:00:18]} Qxd3+ {[%emt 0:00:10]} 23. Rxd3 {[%emt 0:00:05]} b5 {[%emt 0:02:26]} 24. g3 {[%emt 0:02:47]} Rb8 {[%emt 0:03:15]} 25. Rc1 {[%emt 0:09:50]} Rbc8 {[%emt 0:01:36]} 26. b3 {[%emt 0:01:43]} Kd7 {[%emt 0:00:29]} 27. Nd5 {[%emt 0:06:04]} Bd8 {[%emt 0:01:29]} 28. Nb4 {[%emt 0:01:55]} Rb6 {[%emt 0:00:40]} 29. Rd5 {[%emt 0:00:07]} a5 {[%emt 0:06:13]} 30. Nd3 {[%emt 0:00:06]} Ke7 {[%emt 0:00:37]} 31. Kb2 {[%emt 0:02:14]} Rb7 {[%emt 0:01:33]} 32. Nf2 {[%emt 0:03:04]} Rbb8 {[%emt 0:01:57]} 33. Nd1 {[%emt 0:01:11]} Bb6 {[%emt 0:01:23]} 34. Rc2 {[%emt 0:01:48]} b4 {[%emt 0:00:37]} 35. c4 {[%emt 0:00:51]} Bd4+ {[%emt 0:00:10]} 36. Kb1 {[%emt 0:00:10]} Rc5 {[%emt 0:01:50]} 37. Nb2 {[%emt 0:00:10]} Rbc8 {[%emt 0:00:44]} 38. Nd3 {[%emt 0:00:46]} Rxd5 {[%emt 0:00:29]} 39. cxd5 {[%emt 0:00:06]} Rxc2 {[%emt 0:01:23]} 40. Kxc2 {[%emt 0:00:06]} Kf6 {[%emt 0:03:27]} 41. Kd2 {[%emt 0:21:17]} g5 {[%emt 0:08:40]} 42. Ke2 {[%emt 0:00:00]} g4 {[%emt 0:01:01]} 43. Nc1 {[%emt 0:00:00]} Bb2 {[%emt 0:01:59]} 44. Kd2 {[%emt 0:00:00]} Bxc1+ {[%emt 0:00:30]} 45. Kxc1 {[%emt 0:00:00]} Ke7 {[%emt 0:00:01]} 46. Kd2 {[%emt 0:00:00]} 1/2-1/2

[Event "2nd Sparkasse Trophy Harrwitz Memorial"]
[Site "Bolzano"]
[Date "2025.04.26"]
[Round "3.2"]
[White "Bodrov, Timofey"]
[Black "Unterweger, Jonas"]
[Result "1-0"]
[Annotator "NA"]
[ECO "C00"]
[WhiteElo "2113"]
[BlackElo "2109"]
[PlyCount "103"]
[EventDate "2025.04.19"]
[EventType "swiss"]
[EventCountry "ITA"]
[SourceTitle "playchess.com"]
[Source "ChessBase"]
[SourceQuality "1"]
[TimeControl "40/5400+30:900+30"]

1. Nf3 {[%emt 0:00:03]} d5 {[%emt 0:00:08]} 2. g3 {[%emt 0:00:23]} Nf6 {[%emt 0:00:14]} 3. Bg2 {[%emt 0:00:25]} e6 {[%emt 0:00:22]} 4. O-O {[%emt 0:00:44]} Be7 {[%emt 0:00:16]} 5. d3 {[%emt 0:01:00]} O-O {[%emt 0:01:02]} 6. Nbd2 {[%emt 0:00:23]} c5 {[%emt 0:00:47]} 7. e4 {[%emt 0:00:20]} Nc6 {[%emt 0:00:52]} 8. Re1 {[%emt 0:00:21]} Re8 {[%emt 0:03:51]} 9. e5 {[%emt 0:02:01]} Nd7 {[%emt 0:00:33]} 10. Nf1 {[%emt 0:01:00]} Qc7 {[%emt 0:01:29]} 11. Bf4 {[%emt 0:00:57]} b5 {[%emt 0:03:14]} 12. h4 {[%emt 0:00:33]} Bb7 {[%emt 0:08:01]} 13. h5 {[%emt 0:01:26]} h6 {[%emt 0:01:05]} 14. N1h2 {[%emt 0:02:00]} b4 {[%emt 0:07:27]} 15. Ng4 {[%emt 0:01:00]} Bf8 {[%emt 0:03:46]} 16. Qd2 {[%emt 0:07:15]} Kh7 {[%emt 0:01:17]} 17. a3 {[%emt 0:16:20]} bxa3 {[%emt 0:05:28]} 18. Rxa3 {[%emt 0:02:34]} Rab8 {[%emt 0:02:31]} 19. c4 {[%emt 0:02:06]} Nb6 {[%emt 0:08:02]} 20. b3 {[%emt 0:03:10]} Red8 {[%emt 0:01:22]} 21. Qe2 {[%emt 0:07:24]} Ba8 {[%emt 0:02:31]} 22. Rea1 {[%emt 0:01:41]} Rd7 {[%emt 0:05:00]} 23. Qc2 {[%emt 0:19:41]} Kg8 {[%emt 0:06:16]} 24. Bxh6 {[%emt 0:05:20]} f5 {[%emt 0:06:44]} 25. exf6 {[%emt 0:05:08]} gxh6 {[%emt 0:00:17]} 26. d4 {[%emt 0:02:37]} Nxd4 {[%emt 0:13:55]} 27. Qg6+ {[%emt 0:02:52]} Kh8 {[%emt 0:00:08]} 28. Nxd4 {[%emt 0:00:38]} cxd4 {[%emt 0:00:15]} 29. Rxa7 {[%emt 0:00:08]} Bb7 {[%emt 0:02:15]} 30. cxd5 {[%emt 0:05:17]} exd5 {[%emt 0:03:48]} 31. Bf1 {[%emt 0:02:59]} Nc8 {[%emt 0:02:16]} 32. Nxh6 {[%emt 0:00:25]} Rg7 {[%emt 0:02:04]} 33. fxg7+ {[%emt 0:00:22]} Qxg7 {[%emt 0:00:27]} 34. Nf7+ {[%emt 0:00:55]} Kg8 {[%emt 0:00:10]} 35. Nh6+ {[%emt 0:00:03]} Kh8 {[%emt 0:00:05]} 36. Nf7+ {[%emt 0:05:56]} Kg8 {[%emt 0:00:11]} 37. R7a2 {[%emt 0:02:15]} Qxg6 {[%emt 0:03:52]} 38. hxg6 {[%emt 0:00:11]} Kg7 {[%emt 0:00:05]} 39. Ne5 {[%emt 0:01:00]} Nb6 {[%emt 0:00:57]} 40. Nd3 {[%emt 0:00:55]} Kxg6 {[%emt 0:00:13]} 41. Re1 {[%emt 0:15:35]} Nd7 {[%emt 0:16:02]} 42. Bh3 {[%emt 0:00:00]} Nc5 {[%emt 0:00:00]} 43. Nxc5 {[%emt 0:00:00]} Bxc5 {[%emt 0:00:00]} 44. b4 {[%emt 0:00:00]} Bxb4 {[%emt 0:00:00]} 45. Re6+ {[%emt 0:00:00]} Kf7 {[%emt 0:00:00]} 46. Rb6 {[%emt 0:00:00]} Bc5 {[%emt 0:00:00]} 47. Rb5 {[%emt 0:00:00]} Bc8 {[%emt 0:00:00]} 48. Rxb8 {[%emt 0:00:00]} Bxh3 {[%emt 0:00:00]} 49. Rb5 {[%emt 0:00:00]} Be7 {[%emt 0:00:00]} 50. Rd2 {[%emt 0:00:00]} Bf6 {[%emt 0:00:00]} 51. Rxd5 {[%emt 0:00:00]} Be6 {[%emt 0:00:00]} 52. R5xd4 {[%emt 0:00:00]} 1-0

[Event "2nd Sparkasse Trophy Harrwitz Memorial"]
[Site "Bolzano"]
[Date "2025.04.26"]
[Round "3.3"]
[White "Valente, Luca"]
[Black "De Vita, Gianni"]
[Result "1/2-1/2"]
[Annotator "NA RC"]
[ECO "A12"]
[WhiteElo "1885"]
[BlackElo "1975"]
[PlyCount "57"]
[EventDate "2025.04.19"]
[EventType "swiss"]
[EventCountry "ITA"]
[SourceTitle "playchess.com"]
[Source "ChessBase"]
[SourceQuality "1"]
[TimeControl "40/5400+30:900+30"]

1. Nf3 {[%emt 0:00:05]} d5 {[%emt 0:00:16]} 2. c4 {[%emt 0:00:10]} c6 {[%emt 0:00:28]} 3. b3 {[%emt 0:00:07]} Nf6 {[%emt 0:02:20]} 4. Bb2 {[%emt 0:00:07]} Bg4 {[%emt 0:02:06]} 5. e3 {[%emt 0:00:07]} Nbd7 {[%emt 0:01:31]} 6. Be2 {[%emt 0:00:45]} e6 {[%emt 0:02:47]} 7. O-O {[%emt 0:00:28]} Bd6 {[%emt 0:01:37]} 8. h3 {[%emt 0:00:34]} Bh5 {[%emt 0:01:12]} 9. d3 {[%emt 0:02:05]} O-O {[%emt 0:00:21]} 10. Nbd2 {[%emt 0:00:36]} Re8 {[%emt 0:06:34]} 11. e4 {[%emt 0:05:08]} e5 {[%emt 0:02:55]} 12. exd5 {[%emt 0:10:16]} cxd5 {[%emt 0:00:24]} 13. Re1 {[%emt 0:04:15]} d4 {[%emt 0:07:13]} 14. Ng5 {[%emt 0:06:13]} Bg6 {[%emt 0:04:46]} 15. Bf1 {[%emt 0:09:16]} Nc5 {[%emt 0:01:10]} 16. Nge4 {[%emt 0:10:24]} Ncxe4 {[%emt 0:01:50]} 17. Nxe4 {[%emt 0:00:21]} Nxe4 {[%emt 0:02:57]} 18. dxe4 {[%emt 0:00:09]} Bb4 {[%emt 0:02:09]} 19. Re2 {[%emt 0:01:16]} Bh5 {[%emt 0:04:14]} 20. g4 {[%emt 0:00:16]} Bg6 {[%emt 0:01:17]} 21. a3 {[%emt 0:03:40]} Be7 {[%emt 0:05:42]} 22. Re1 {[%emt 0:02:22]} Bg5 {[%emt 0:00:43]} 23. Bd3 {[%emt 0:01:34]} Bf4 {[%emt 0:01:50]} 24. Bc1 {[%emt 0:00:43]} Qg5 {[%emt 0:05:20]} 25. Qf3 {[%emt 0:00:44]} Bxc1 {[%emt 0:01:15]} 26. Raxc1 {[%emt 0:00:17]} Re6 {[%emt 0:00:30]} 27. Rcd1 {[%emt 0:05:54]} Rf6 {[%emt 0:01:24]} 28. Qg3 {[%emt 0:00:21]} Rf4 {[%emt 0:01:15]} 29. f3 {[%emt 0:03:36]} 1/2-1/2

[Event "2nd Sparkasse Trophy Harrwitz Memorial"]
[Site "Bolzano"]
[Date "2025.04.26"]
[Round "3.4"]
[White "Radice, Luca"]
[Black "Spornberger, Andre"]
[Result "0-1"]
[Annotator "ChessBase"]
[ECO "C15"]
[WhiteElo "1963"]
[BlackElo "2233"]
[PlyCount "106"]
[EventDate "2025.04.19"]
[EventType "swiss"]
[EventCountry "ITA"]
[SourceTitle "playchess.com"]
[Source "ChessBase"]
[SourceQuality "1"]
[TimeControl "40/5400+30:900+30"]

1. d4 {[%emt 0:00:05]} e6 {[%emt 0:00:09]} 2. e4 {[%emt 0:00:20]} d5 {[%emt 0:00:10]} 3. Nc3 {[%emt 0:00:15]} Bb4 {[%emt 0:00:22]} 4. Nge2 {[%emt 0:01:01]} dxe4 {[%emt 0:04:41]} 5. a3 {[%emt 0:00:40]} Be7 {[%emt 0:00:11]} 6. Nxe4 {[%emt 0:00:46]} Nf6 {[%emt 0:00:15]} 7. N2g3 {[%emt 0:04:41]} O-O {[%emt 0:01:13]} 8. Be2 {[%emt 0:02:39]} b6 {[%emt 0:09:16]} 9. O-O {[%emt 0:05:54]} Bb7 {[%emt 0:01:55]} 10. Bf3 {[%emt 0:04:56]} Qc8 {[%emt 0:06:58]} 11. c3 {[%emt 0:08:04]} Nbd7 {[%emt 0:01:27]} 12. Nxf6+ {[%emt 0:04:50]} Nxf6 {[%emt 0:00:37]} 13. Bxb7 {[%emt 0:04:06]} Qxb7 {[%emt 0:00:09]} 14. Bg5 {[%emt 0:02:46]} h6 {[%emt 0:02:15]} 15. Bxf6 {[%emt 0:05:23]} Bxf6 {[%emt 0:00:11]} 16. Nh5 {[%emt 0:00:45]} Be7 {[%emt 0:04:13]} 17. Qg4 {[%emt 0:03:43]} g6 {[%emt 0:01:26]} 18. Rfe1 {[%emt 0:10:53]} Kh7 {[%emt 0:02:50]} 19. Nf4 {[%emt 0:02:41]} Bd6 {[%emt 0:07:18]} 20. Nd3 {[%emt 0:02:38]} a5 {[%emt 0:05:19]} 21. Qe4 {[%emt 0:05:03]} Qxe4 {[%emt 0:07:45]} 22. Rxe4 {[%emt 0:00:10]} Rac8 {[%emt 0:01:44]} 23. Rd1 {[%emt 0:05:20]} Rfd8 {[%emt 0:00:38]} 24. Ree1 {[%emt 0:00:52]} Kg7 {[%emt 0:02:26]} 25. Ne5 {[%emt 0:02:00]} Bxe5 {[%emt 0:01:38]} 26. dxe5 {[%emt 0:00:22]} Kf8 {[%emt 0:00:26]} 27. Kf1 {[%emt 0:00:20]} Ke7 {[%emt 0:00:13]} 28. Ke2 {[%emt 0:00:46]} Rd5 {[%emt 0:00:32]} 29. Rxd5 {[%emt 0:02:58]} exd5 {[%emt 0:01:03]} 30. f4 {[%emt 0:01:15]} Ke6 {[%emt 0:00:46]} 31. Kf3 {[%emt 0:00:34]} g5 {[%emt 0:02:27]} 32. fxg5 {[%emt 0:03:17]} hxg5 {[%emt 0:00:07]} 33. Kg4 {[%emt 0:00:15]} Rg8 {[%emt 0:00:38]} 34. g3 {[%emt 0:03:24]} c5 {[%emt 0:00:42]} 35. Rf1 {[%emt 0:01:12]} Kxe5 {[%emt 0:01:17]} 36. Rxf7 {[%emt 0:00:13]} d4 {[%emt 0:01:00]} 37. cxd4+ {[%emt 0:00:47]} cxd4 {[%emt 0:00:37]} 38. Rd7 {[%emt 0:02:32]} Ke4 {[%emt 0:00:44]} 39. Re7+ {[%emt 0:03:07]} Kd3 {[%emt 0:00:42]} 40. Re6 {[%emt 0:03:04]} Kc2 {[%emt 0:19:46]} 41. Rc6+ {[%emt 0:16:22]} Kd2 {[%emt 0:15:38]} 42. Rxb6 {[%emt 0:03:08]} d3 {[%emt 0:00:56]} 43. b4 {[%emt 0:00:00]} a4 {[%emt 0:00:00]} 44. Rd6 {[%emt 0:00:00]} Ke2 {[%emt 0:00:00]} 45. Re6+ {[%emt 0:00:00]} Kd1 {[%emt 0:00:00]} 46. b5 {[%emt 0:00:00]} Rd8 {[%emt 0:00:00]} 47. b6 {[%emt 0:00:00]} d2 {[%emt 0:00:00]} 48. b7 {[%emt 0:00:00]} Kc2 {[%emt 0:00:00]} 49. Rc6+ {[%emt 0:00:00]} Kd3 {[%emt 0:00:00]} 50. Rd6+ {[%emt 0:01:13]} Rxd6 {[%emt 0:00:00]} 51. b8=Q {[%emt 0:00:04]} d1=Q+ {[%emt 0:00:00]} 52. Kxg5 {[%emt 0:01:35]} Qd2+ {[%emt 0:00:00]} 53. Kg4 {[%emt 0:01:43]} Qe2+ {[%emt 0:00:00]} 0-1

[Event "2nd Sparkasse Trophy Harrwitz Memorial"]
[Site "Bolzano"]
[Date "2025.04.26"]
[Round "3.5"]
[White "Di Liberto, Michele"]
[Black "Bonagura, Stefano"]
[Result "0-1"]
[Annotator "RC"]
[ECO "B15"]
[WhiteElo "2106"]
[BlackElo "2199"]
[PlyCount "72"]
[EventDate "2025.04.19"]
[EventType "swiss"]
[EventCountry "ITA"]
[SourceTitle "playchess.com"]
[Source "ChessBase"]
[SourceQuality "1"]
[TimeControl "40/5400+30:900+30"]

1. e4 {[%emt 0:00:02]} g6 {[%emt 0:02:48]} 2. d4 {[%emt 0:00:17]} Bg7 {[%emt 0:00:07]} 3. Nc3 {[%emt 0:00:19]} c6 {[%emt 0:00:11]} 4. Be3 {[%emt 0:01:40]} d5 {[%emt 0:00:21]} 5. f3 {[%emt 0:04:07]} dxe4 {[%emt 0:01:23]} 6. fxe4 {[%emt 0:00:41]} Nf6 {[%emt 0:00:29]} 7. Be2 {[%emt 0:04:39]} Qb6 {[%emt 0:10:34]} 8. e5 {[%emt 0:19:15]} Nd5 {[%emt 0:02:30]} 9. Nxd5 {[%emt 0:00:22]} cxd5 {[%emt 0:00:10]} 10. b3 {[%emt 0:01:43]} Nc6 {[%emt 0:06:46]} 11. Qd2 {[%emt 0:01:47]} Bf5 {[%emt 0:00:33]} 12. c3 {[%emt 0:10:39]} h5 {[%emt 0:11:06]} 13. Bf3 {[%emt 0:01:27]} e6 {[%emt 0:00:25]} 14. Ne2 {[%emt 0:01:11]} Rc8 {[%emt 0:02:03]} 15. Ng3 {[%emt 0:09:39]} Ne7 {[%emt 0:02:50]} 16. O-O {[%emt 0:05:52]} h4 {[%emt 0:04:48]} 17. Ne2 {[%emt 0:05:27]} Nc6 {[%emt 0:08:01]} 18. Rac1 {[%emt 0:09:53]} Bf8 {[%emt 0:01:16]} 19. c4 {[%emt 0:06:33]} Bb4 {[%emt 0:03:18]} 20. Qb2 {[%emt 0:00:33]} Nxe5 {[%emt 0:01:22]} 21. c5 {[%emt 0:01:49]} Nxf3+ {[%emt 0:00:15]} 22. Rxf3 {[%emt 0:00:02]} Qa6 {[%emt 0:00:32]} 23. a4 {[%emt 0:01:35]} Bg4 {[%emt 0:06:09]} 24. Rf2 {[%emt 0:00:53]} Bxe2 {[%emt 0:01:08]} 25. Rxe2 {[%emt 0:06:11]} Ba3 {[%emt 0:00:08]} 26. Qxa3 {[%emt 0:00:22]} Qxe2 {[%emt 0:00:08]} 27. Bg5 {[%emt 0:00:52]} Rh5 {[%emt 0:02:29]} 28. Bf6 {[%emt 0:01:16]} Rf5 {[%emt 0:01:11]} 29. Bxh4 {[%emt 0:00:27]} Qe3+ {[%emt 0:05:26]} 30. Kh1 {[%emt 0:00:14]} Qf4 {[%emt 0:00:24]} 31. g3 {[%emt 0:01:13]} Qf3+ {[%emt 0:00:14]} 32. Kg1 {[%emt 0:00:08]} Qe3+ {[%emt 0:02:44]} 33. Kh1 {[%emt 0:00:06]} Qe4+ {[%emt 0:00:04]} 34. Kg1 {[%emt 0:00:08]} Qxd4+ {[%emt 0:00:07]} 35. Kh1 {[%emt 0:00:08]} Rf2 {[%emt 0:02:36]} 36. c6 {[%emt 0:00:24]} Qe4+ {[%emt 0:00:08]} 0-1